[Event "*** SCC Grand Prix: Titled Tuesday Blitz"]
[Site "Chess.com"]
[Date "2020.08.25"]
[Round "2"]
[White "exoticprincess"]
[Black "Iskusnyh"]
[Result "1/2-1/2"]
[WhiteElo "2885"]
[BlackElo "2561"]
[TimeControl "180+1"]
[EndTime "10:20:32 PDT"]
[Termination "Game drawn by repetition"]

1. e4 {[%clk 0:03:00.9]} 1... e6 {[%clk 0:02:58.1]} 2. d4 {[%clk 0:03:00.2]}
2... d5 {[%clk 0:02:58.5]} 3. Nc3 {[%clk 0:03:00.7]} 3... Nf6 {[%clk 0:02:57.6]}
4. Bg5 {[%clk 0:03:00]} 4... dxe4 {[%clk 0:02:56.8]} 5. Nxe4 {[%clk 0:03:00.9]}
5... Nbd7 {[%clk 0:02:57.1]} 6. Nf3 {[%clk 0:03:00.1]} 6... h6 {[%clk
0:02:56.9]} 7. Bh4 {[%clk 0:02:59.2]} 7... Be7 {[%clk 0:02:48.3]} 8. Nxf6+
{[%clk 0:02:59.2]} 8... Bxf6 {[%clk 0:02:47.9]} 9. Bg3 {[%clk 0:02:57.3]} 9...
c5 {[%clk 0:02:36.2]} 10. c3 {[%clk 0:02:57.3]} 10... cxd4 {[%clk 0:02:10.1]}
11. Nxd4 {[%clk 0:02:58.2]} 11... O-O {[%clk 0:02:06.5]} 12. Be2 {[%clk
0:02:54.9]} 12... Qb6 {[%clk 0:01:54.1]} 13. Nb3 {[%clk 0:02:45.7]} 13... a5
{[%clk 0:01:41.3]} 14. a4 {[%clk 0:02:42.7]} 14... Rd8 {[%clk 0:01:39.9]} 15.
Qc2 {[%clk 0:02:42.9]} 15... Nc5 {[%clk 0:01:36]} 16. Nxc5 {[%clk 0:02:42.6]}
16... Qxc5 {[%clk 0:01:35.7]} 17. O-O {[%clk 0:02:42.8]} 17... Bd7 {[%clk
0:01:35.2]} 18. Bf3 {[%clk 0:02:36.8]} 18... Bc6 {[%clk 0:01:33.8]} 19. Bxc6
{[%clk 0:02:36.6]} 19... Qxc6 {[%clk 0:01:33.1]} 20. Rfd1 {[%clk 0:02:36.3]}
20... Rxd1+ {[%clk 0:00:52.6]} 21. Rxd1 {[%clk 0:02:37.2]} 21... Rd8 {[%clk
0:00:52.6]} 22. h3 {[%clk 0:02:36]} 22... Rd5 {[%clk 0:00:48.4]} 23. Qb3 {[%clk
0:02:19.2]} 23... h5 {[%clk 0:00:37.9]} 24. Bf4 {[%clk 0:01:56.3]} 24... g6
{[%clk 0:00:33.3]} 25. Be3 {[%clk 0:01:55.1]} 25... Be5 {[%clk 0:00:30.7]} 26.
Rxd5 {[%clk 0:01:52.8]} 26... exd5 {[%clk 0:00:27]} 27. Bb6 {[%clk 0:01:47.8]}
27... d4 {[%clk 0:00:21.7]} 28. Bxd4 {[%clk 0:00:48.1]} 28... Bxd4 {[%clk
0:00:20.3]} 29. cxd4 {[%clk 0:00:49]} 29... Qc1+ {[%clk 0:00:20.4]} 30. Kh2
{[%clk 0:00:49.6]} 30... Qf4+ {[%clk 0:00:20.9]} 31. Qg3 {[%clk 0:00:50.1]}
31... Qxd4 {[%clk 0:00:21.2]} 32. b3 {[%clk 0:00:49.6]} 32... b6 {[%clk
0:00:20.9]} 33. h4 {[%clk 0:00:47]} 33... Kg7 {[%clk 0:00:20.2]} 34. Kh3 {[%clk
0:00:36.5]} 34... Qd7+ {[%clk 0:00:20]} 35. Kh2 {[%clk 0:00:36.8]} 35... Qd4
{[%clk 0:00:20.6]} 36. f4 {[%clk 0:00:29.3]} 36... Qb4 {[%clk 0:00:17.7]} 37. f5
{[%clk 0:00:28.4]} 37... Qd4 {[%clk 0:00:17]} 38. fxg6 {[%clk 0:00:28.6]} 38...
fxg6 {[%clk 0:00:16.4]} 39. Qc7+ {[%clk 0:00:28.2]} 39... Kf6 {[%clk 0:00:15.9]}
40. Qc6+ {[%clk 0:00:26.3]} 40... Kf5 {[%clk 0:00:15.2]} 41. Qf3+ {[%clk
0:00:26.1]} 41... Qf4+ {[%clk 0:00:14]} 42. Qxf4+ {[%clk 0:00:22.1]} 42... Kxf4
{[%clk 0:00:13.8]} 43. Kh3 {[%clk 0:00:23]} 43... Ke3 {[%clk 0:00:13.3]} 44. Kg3
{[%clk 0:00:22.9]} 44... Kd3 {[%clk 0:00:12]} 45. Kf4 {[%clk 0:00:23.1]} 45...
Kc3 {[%clk 0:00:12.6]} 46. Kg5 {[%clk 0:00:23.7]} 46... Kxb3 {[%clk 0:00:13.1]}
47. Kxg6 {[%clk 0:00:24.3]} 47... Kxa4 {[%clk 0:00:13.6]} 48. Kxh5 {[%clk
0:00:24.8]} 48... b5 {[%clk 0:00:14.1]} 49. g4 {[%clk 0:00:25.4]} 49... b4
{[%clk 0:00:14.6]} 50. g5 {[%clk 0:00:26.3]} 50... b3 {[%clk 0:00:15.1]} 51. g6
{[%clk 0:00:27.2]} 51... b2 {[%clk 0:00:15.7]} 52. g7 {[%clk 0:00:28.1]} 52...
b1=Q {[%clk 0:00:16]} 53. g8=Q {[%clk 0:00:27.6]} 53... Qb5+ {[%clk 0:00:15.6]}
54. Qg5 {[%clk 0:00:27.1]} 54... Kb4 {[%clk 0:00:14.9]} 55. Kg6 {[%clk
0:00:27.2]} 55... a4 {[%clk 0:00:14.3]} 56. Qd2+ {[%clk 0:00:25.5]} 56... Kc4
{[%clk 0:00:13.7]} 57. Qe2+ {[%clk 0:00:24.9]} 57... Kb4 {[%clk 0:00:13.6]} 58.
Qb2+ {[%clk 0:00:24.7]} 58... Kc4 {[%clk 0:00:13.3]} 59. Qc2+ {[%clk 0:00:24.2]}
59... Kb4 {[%clk 0:00:12.9]} 60. h5 {[%clk 0:00:22.7]} 60... Qe8+ {[%clk
0:00:12.6]} 61. Kg5 {[%clk 0:00:22.5]} 61... Qe5+ {[%clk 0:00:12.3]} 62. Kg4
{[%clk 0:00:22.8]} 62... Qe6+ {[%clk 0:00:10.3]} 63. Kh4 {[%clk 0:00:21.4]}
63... Qe7+ {[%clk 0:00:09.3]} 64. Kg4 {[%clk 0:00:21.4]} 64... Qe6+ {[%clk
0:00:09.2]} 65. Kh4 {[%clk 0:00:20.5]} 65... Qe7+ {[%clk 0:00:07.9]} 66. Kg4
{[%clk 0:00:20.8]} 66... Qe6+ {[%clk 0:00:07.9]} 1/2-1/2

[Event "*** SCC Grand Prix: Titled Tuesday Blitz"]
[Site "Chess.com"]
[Date "2020.08.25"]
[Round "2"]
[White "killer311"]
[Black "Vuk2000"]
[Result "0-1"]
[WhiteElo "2481"]
[BlackElo "2720"]
[TimeControl "180+1"]
[EndTime "10:20:37 PDT"]
[Termination "Vuk2000 won by resignation"]

1. d4 {[%clk 0:03:00.9]} 1... e6 {[%clk 0:03:00.3]} 2. c4 {[%clk 0:03:01]} 2...
Nf6 {[%clk 0:03:00.4]} 3. Nf3 {[%clk 0:03:00.4]} 3... b6 {[%clk 0:03:00.4]} 4.
Nc3 {[%clk 0:03:00.4]} 4... Bb7 {[%clk 0:03:00.6]} 5. e3 {[%clk 0:02:58.9]} 5...
d5 {[%clk 0:03:00.8]} 6. cxd5 {[%clk 0:02:55.6]} 6... exd5 {[%clk 0:02:59.8]} 7.
Bd3 {[%clk 0:02:56.5]} 7... Bd6 {[%clk 0:02:52.4]} 8. O-O {[%clk 0:02:56.3]}
8... O-O {[%clk 0:02:51.9]} 9. Qc2 {[%clk 0:02:56.1]} 9... a6 {[%clk 0:02:43.3]}
10. e4 {[%clk 0:02:54.3]} 10... dxe4 {[%clk 0:02:43.3]} 11. Nxe4 {[%clk
0:02:55.2]} 11... Nxe4 {[%clk 0:02:42.2]} 12. Bxe4 {[%clk 0:02:56.1]} 12... Bxe4
{[%clk 0:02:42.2]} 13. Qxe4 {[%clk 0:02:57]} 13... Nd7 {[%clk 0:02:42.1]} 14.
Bg5 {[%clk 0:02:57.1]} 14... Qc8 {[%clk 0:02:30.8]} 15. Rac1 {[%clk 0:02:52.1]}
15... Re8 {[%clk 0:02:29]} 16. Qc6 {[%clk 0:02:40.7]} 16... Re6 {[%clk
0:02:21.2]} 17. Qc2 {[%clk 0:02:29.7]} 17... h6 {[%clk 0:02:15.7]} 18. Bh4
{[%clk 0:02:29.1]} 18... Nf6 {[%clk 0:02:12.8]} 19. Rfe1 {[%clk 0:02:25.4]}
19... Nd5 {[%clk 0:01:55.9]} 20. Rxe6 {[%clk 0:02:07.2]} 20... Qxe6 {[%clk
0:01:55.3]} 21. Re1 {[%clk 0:02:07.6]} 21... Nb4 {[%clk 0:01:39]} 22. Rxe6
{[%clk 0:01:43.6]} 22... Nxc2 {[%clk 0:01:38.6]} 23. Re2 {[%clk 0:01:43]} 23...
Nb4 {[%clk 0:01:38.4]} 24. a3 {[%clk 0:01:41.7]} 24... Nd5 {[%clk 0:01:23.8]}
25. Bg3 {[%clk 0:01:40.8]} 25... Rd8 {[%clk 0:01:03.1]} 26. Ne5 {[%clk
0:01:32.9]} 26... Bxe5 {[%clk 0:00:59.2]} 27. dxe5 {[%clk 0:01:30.4]} 27... Nf4
{[%clk 0:00:54.6]} 28. Re1 {[%clk 0:01:26.3]} 28... Nd3 {[%clk 0:00:55]} 29. Rd1
{[%clk 0:01:24.8]} 29... c5 {[%clk 0:00:51.5]} 30. b3 {[%clk 0:01:16.1]} 30...
b5 {[%clk 0:00:48.5]} 31. Kf1 {[%clk 0:01:13.9]} 31... c4 {[%clk 0:00:48.6]} 32.
bxc4 {[%clk 0:01:14.7]} 32... bxc4 {[%clk 0:00:49.4]} 33. Ke2 {[%clk 0:01:14.9]}
33... Rd5 {[%clk 0:00:42.3]} 34. f4 {[%clk 0:01:06.8]} 34... g5 {[%clk 0:00:40]}
35. fxg5 {[%clk 0:01:02.4]} 35... hxg5 {[%clk 0:00:39.8]} 36. Ke3 {[%clk
0:00:57.2]} 36... Ra5 {[%clk 0:00:37.5]} 37. Kd4 {[%clk 0:00:47.2]} 37... Rxa3
{[%clk 0:00:37.5]} 38. Rb1 {[%clk 0:00:42.3]} 38... Ra4 {[%clk 0:00:37.1]} 39.
Kc3 {[%clk 0:00:38.2]} 39... Nc5 {[%clk 0:00:33.6]} 40. Rb8+ {[%clk 0:00:23.4]}
40... Kg7 {[%clk 0:00:33.2]} 41. e6 {[%clk 0:00:20.4]} 41... Nxe6 {[%clk
0:00:29.6]} 42. Be5+ {[%clk 0:00:19.9]} 42... f6 {[%clk 0:00:29.1]} 43. Rb7+
{[%clk 0:00:20.2]} 43... Kg6 {[%clk 0:00:29.3]} 44. Bd6 {[%clk 0:00:20.2]} 44...
Kf5 {[%clk 0:00:28.7]} 45. Be7 {[%clk 0:00:19.3]} 45... Nf4 {[%clk 0:00:27.5]}
46. g4+ {[%clk 0:00:16.7]} 46... Kxg4 {[%clk 0:00:27.1]} 47. Rd7 {[%clk
0:00:15.4]} 47... Kf5 {[%clk 0:00:26.5]} 48. Rd6 {[%clk 0:00:14.4]} 48... Ke4
{[%clk 0:00:25.7]} 49. Bxf6 {[%clk 0:00:13.7]} 49... Nd5+ {[%clk 0:00:25.6]} 50.
Kc2 {[%clk 0:00:14.3]} 50... Ra2+ {[%clk 0:00:24.7]} 51. Kc1 {[%clk 0:00:14]}
51... Rxh2 {[%clk 0:00:22.1]} 52. Rxa6 {[%clk 0:00:13.1]} 52... Kd3 {[%clk
0:00:21.2]} 53. Rd6 {[%clk 0:00:09.8]} 53... Ke4 {[%clk 0:00:21]} 54. Re6+
{[%clk 0:00:09.6]} 54... Kf3 {[%clk 0:00:19.8]} 55. Rd6 {[%clk 0:00:09.2]} 55...
Ne3 {[%clk 0:00:19.7]} 56. Rc6 {[%clk 0:00:08.7]} 56... g4 {[%clk 0:00:19.1]}
57. Bd4 {[%clk 0:00:08.5]} 57... Rc2+ {[%clk 0:00:17.9]} 58. Kb1 {[%clk
0:00:08.3]} 58... Rd2 {[%clk 0:00:18.5]} 59. Bxe3 {[%clk 0:00:08.1]} 59... Kxe3
{[%clk 0:00:18.7]} 60. Rxc4 {[%clk 0:00:09]} 60... g3 {[%clk 0:00:19]} 61. Rc3+
{[%clk 0:00:09]} 61... Kf2 {[%clk 0:00:18.9]} 62. Kc1 {[%clk 0:00:09.2]} 62...
Re2 {[%clk 0:00:19.2]} 63. Rc7 {[%clk 0:00:09.5]} 63... g2 {[%clk 0:00:18.8]}
64. Rf7+ {[%clk 0:00:10.1]} 64... Ke1 {[%clk 0:00:18.9]} 65. Rg7 {[%clk
0:00:09.4]} 65... Kf1 {[%clk 0:00:19.3]} 66. Rf7+ {[%clk 0:00:08.8]} 66... Rf2
{[%clk 0:00:19.1]} 67. Rg7 {[%clk 0:00:09]} 67... g1=Q {[%clk 0:00:19.1]} 68.
Rxg1+ {[%clk 0:00:08.6]} 68... Kxg1 {[%clk 0:00:20]} 0-1

[Event "*** SCC Grand Prix: Titled Tuesday Blitz"]
[Site "Chess.com"]
[Date "2020.08.25"]
[Round "2"]
[White "x-0414717230"]
[Black "FMJoseHerrera"]
[Result "0-1"]
[WhiteElo "2722"]
[BlackElo "2508"]
[TimeControl "180+1"]
[EndTime "10:20:40 PDT"]
[Termination "FMJoseHerrera won on time"]

1. d4 {[%clk 0:03:00.9]} 1... Nf6 {[%clk 0:02:59]} 2. c4 {[%clk 0:02:57.3]} 2...
c5 {[%clk 0:02:58.9]} 3. d5 {[%clk 0:02:57.3]} 3... b5 {[%clk 0:02:58.8]} 4.
cxb5 {[%clk 0:02:58.2]} 4... a6 {[%clk 0:02:59]} 5. bxa6 {[%clk 0:02:59.1]} 5...
g6 {[%clk 0:02:59.5]} 6. Nc3 {[%clk 0:02:59.7]} 6... Bg7 {[%clk 0:02:58.9]} 7.
Nf3 {[%clk 0:02:59.7]} 7... O-O {[%clk 0:02:57.8]} 8. e4 {[%clk 0:02:58.4]} 8...
Qa5 {[%clk 0:02:57.6]} 9. Bd2 {[%clk 0:02:57.3]} 9... Bxa6 {[%clk 0:02:56.2]}
10. Bxa6 {[%clk 0:02:54.3]} 10... Qxa6 {[%clk 0:02:53.3]} 11. a4 {[%clk
0:02:54.1]} 11... e6 {[%clk 0:02:51.2]} 12. dxe6 {[%clk 0:02:51.6]} 12... fxe6
{[%clk 0:02:51.2]} 13. Qe2 {[%clk 0:02:51.7]} 13... Nc6 {[%clk 0:02:49.7]} 14.
Qxa6 {[%clk 0:02:40.7]} 14... Rxa6 {[%clk 0:02:49.2]} 15. O-O {[%clk 0:02:36.5]}
15... Rb8 {[%clk 0:02:47.4]} 16. Rab1 {[%clk 0:02:34.3]} 16... Nd4 {[%clk
0:02:43.1]} 17. Ne5 {[%clk 0:02:14.2]} 17... Nxe4 {[%clk 0:02:22.5]} 18. Nxe4
{[%clk 0:01:49.9]} 18... Bxe5 {[%clk 0:02:21.7]} 19. Nxc5 {[%clk 0:01:50]} 19...
Ra7 {[%clk 0:02:22.2]} 20. Be3 {[%clk 0:01:29.9]} 20... Nc2 {[%clk 0:01:55.7]}
21. Bc1 {[%clk 0:01:00.1]} 21... Bd4 {[%clk 0:01:48.9]} 22. Nd3 {[%clk
0:00:54.4]} 22... Rxa4 {[%clk 0:01:47.6]} 23. b3 {[%clk 0:00:46.7]} 23... Ra2
{[%clk 0:01:44]} 24. Bf4 {[%clk 0:00:44.1]} 24... Rf8 {[%clk 0:01:42]} 25. Be5
{[%clk 0:00:43.4]} 25... Bb6 {[%clk 0:01:38]} 26. Bd6 {[%clk 0:00:43.1]} 26...
Rf5 {[%clk 0:01:36.9]} 27. b4 {[%clk 0:00:36.8]} 27... Rd5 {[%clk 0:01:36.6]}
28. Bc5 {[%clk 0:00:36.4]} 28... Bc7 {[%clk 0:01:27.2]} 29. Nc1 {[%clk
0:00:35.1]} 29... Ra4 {[%clk 0:01:24.9]} 30. Ne2 {[%clk 0:00:32.1]} 30... Rd2
{[%clk 0:01:20.1]} 31. Nc3 {[%clk 0:00:32.3]} 31... Ra3 {[%clk 0:01:20.6]} 32.
Ne4 {[%clk 0:00:32.4]} 32... Re2 {[%clk 0:01:21.2]} 33. Bd6 {[%clk 0:00:27.8]}
33... Bb6 {[%clk 0:01:18.7]} 34. Bc5 {[%clk 0:00:28.1]} 34... Bc7 {[%clk
0:01:18.1]} 35. Bd6 {[%clk 0:00:28.2]} 35... Rxe4 {[%clk 0:01:12.4]} 36. Bxc7
{[%clk 0:00:28.3]} 36... Rxb4 {[%clk 0:01:13.1]} 37. Bd6 {[%clk 0:00:19.6]}
37... Rxb1 {[%clk 0:01:10.9]} 38. Rxb1 {[%clk 0:00:20.2]} 38... Ra1 {[%clk
0:01:11.2]} 39. Rxa1 {[%clk 0:00:20.6]} 39... Nxa1 {[%clk 0:01:12.1]} 40. f3
{[%clk 0:00:20.9]} 40... Kf7 {[%clk 0:01:12.4]} 41. Kf2 {[%clk 0:00:21.5]} 41...
Kf6 {[%clk 0:01:12.9]} 42. Bb4 {[%clk 0:00:20.4]} 42... Nc2 {[%clk 0:01:11.2]}
43. Bc3+ {[%clk 0:00:20.7]} 43... Ke7 {[%clk 0:01:05.9]} 44. Bb2 {[%clk
0:00:20]} 44... d6 {[%clk 0:01:04.2]} 45. Ke2 {[%clk 0:00:20.1]} 45... Nb4
{[%clk 0:01:04.3]} 46. Ke3 {[%clk 0:00:19.7]} 46... Nd5+ {[%clk 0:01:04]} 47.
Ke4 {[%clk 0:00:19.9]} 47... Nf6+ {[%clk 0:01:03.7]} 48. Kf4 {[%clk 0:00:19.9]}
48... h6 {[%clk 0:01:03.2]} 49. h4 {[%clk 0:00:18.7]} 49... e5+ {[%clk
0:01:03.6]} 50. Ke3 {[%clk 0:00:18.1]} 50... Ke6 {[%clk 0:01:04.2]} 51. g4
{[%clk 0:00:18.1]} 51... h5 {[%clk 0:01:04]} 52. gxh5 {[%clk 0:00:15.4]} 52...
gxh5 {[%clk 0:01:03.8]} 53. Ba3 {[%clk 0:00:14.9]} 53... Nd5+ {[%clk 0:01:04.1]}
54. Ke4 {[%clk 0:00:15.1]} 54... Nf4 {[%clk 0:01:04.1]} 55. Bc1 {[%clk
0:00:14.6]} 55... Ng2 {[%clk 0:01:04.2]} 56. Bg5 {[%clk 0:00:14.5]} 56... d5+
{[%clk 0:01:04.8]} 57. Kd3 {[%clk 0:00:14.3]} 57... Kf5 {[%clk 0:01:05.4]} 58.
Ke2 {[%clk 0:00:14.6]} 58... Nf4+ {[%clk 0:01:04.8]} 59. Ke3 {[%clk 0:00:14.9]}
59... Ne6 {[%clk 0:01:05.2]} 60. Be7 {[%clk 0:00:14.8]} 60... d4+ {[%clk
0:01:05.5]} 61. Kd3 {[%clk 0:00:15.1]} 61... Nf4+ {[%clk 0:01:06]} 62. Kd2
{[%clk 0:00:15.5]} 62... Nd5 {[%clk 0:01:06.2]} 63. Bd8 {[%clk 0:00:14.3]} 63...
Kf4 {[%clk 0:01:06.3]} 64. Ke2 {[%clk 0:00:12.6]} 64... Kg3 {[%clk 0:01:06.4]}
65. Bg5 {[%clk 0:00:10.7]} 65... Nf4+ {[%clk 0:01:05.6]} 66. Kd2 {[%clk
0:00:09.6]} 66... Kxf3 {[%clk 0:01:06]} 67. Bf6 {[%clk 0:00:10.3]} 67... Ng6
{[%clk 0:01:05.5]} 68. Kd3 {[%clk 0:00:10.1]} 68... Kf4 {[%clk 0:01:04.7]} 69.
Bg5+ {[%clk 0:00:09.2]} 69... Kf5 {[%clk 0:01:05.2]} 70. Bd8 {[%clk 0:00:08.6]}
70... Ke6 {[%clk 0:01:05.6]} 71. Ke4 {[%clk 0:00:08.4]} 71... Ne7 {[%clk
0:01:03.8]} 72. Bc7 {[%clk 0:00:08]} 72... Ng6 {[%clk 0:00:58.2]} 73. Bd8 {[%clk
0:00:07.9]} 73... Kd7 {[%clk 0:00:55.2]} 74. Bf6 {[%clk 0:00:07.5]} 74... Kd6
{[%clk 0:00:53.9]} 75. Kf5 {[%clk 0:00:06.5]} 75... Nxh4+ {[%clk 0:00:53.7]} 76.
Bxh4 {[%clk 0:00:06.5]} 76... Kd5 {[%clk 0:00:53.6]} 77. Bg3 {[%clk 0:00:04.2]}
77... e4 {[%clk 0:00:53.7]} 78. Kf4 {[%clk 0:00:04.4]} 78... e3 {[%clk
0:00:49.2]} 79. Kf3 {[%clk 0:00:03.8]} 79... Kc4 {[%clk 0:00:48.7]} 80. Ke2
{[%clk 0:00:04.1]} 80... Kc3 {[%clk 0:00:47]} 81. Be5 {[%clk 0:00:01.5]} 81...
h4 {[%clk 0:00:47.1]} 82. Bf6 {[%clk 0:00:01.4]} 82... h3 {[%clk 0:00:47.5]} 83.
Be5 {[%clk 0:00:01.8]} 83... Kc2 {[%clk 0:00:47.4]} 0-1

[Event "*** SCC Grand Prix: Titled Tuesday Blitz"]
[Site "Chess.com"]
[Date "2020.08.25"]
[Round "2"]
[White "Ariadna_Atreides"]
[Black "Dr_crypt"]
[Result "1/2-1/2"]
[WhiteElo "2052"]
[BlackElo "2372"]
[TimeControl "180+1"]
[EndTime "10:20:40 PDT"]
[Termination "Game drawn by repetition"]

1. d4 {[%clk 0:02:59.4]} 1... Nf6 {[%clk 0:02:58.3]} 2. Nf3 {[%clk 0:02:59.4]}
2... e6 {[%clk 0:02:57.9]} 3. e3 {[%clk 0:02:59.1]} 3... b6 {[%clk 0:02:57.5]}
4. Bd3 {[%clk 0:02:58.8]} 4... Bb7 {[%clk 0:02:58]} 5. O-O {[%clk 0:02:59.3]}
5... g6 {[%clk 0:02:57.7]} 6. b3 {[%clk 0:02:58.9]} 6... Bg7 {[%clk 0:02:57.7]}
7. Bb2 {[%clk 0:02:59.4]} 7... O-O {[%clk 0:02:57.8]} 8. Nbd2 {[%clk 0:03:00]}
8... d5 {[%clk 0:02:56.9]} 9. c4 {[%clk 0:02:56.8]} 9... Nbd7 {[%clk 0:02:56]}
10. Rc1 {[%clk 0:02:55]} 10... Ne4 {[%clk 0:02:53.4]} 11. cxd5 {[%clk
0:02:54.4]} 11... exd5 {[%clk 0:02:52.1]} 12. Qc2 {[%clk 0:02:53.8]} 12... Nxd2
{[%clk 0:02:46.3]} 13. Qxd2 {[%clk 0:02:50.8]} 13... c5 {[%clk 0:02:42.4]} 14.
dxc5 {[%clk 0:02:47.6]} 14... Bxb2 {[%clk 0:02:34.1]} 15. Qxb2 {[%clk
0:02:46.2]} 15... Nxc5 {[%clk 0:02:35]} 16. Bb1 {[%clk 0:02:45]} 16... Qe7
{[%clk 0:02:18.4]} 17. Nd4 {[%clk 0:02:37.6]} 17... Rac8 {[%clk 0:02:15.6]} 18.
h3 {[%clk 0:02:14.9]} 18... Rfd8 {[%clk 0:02:13.8]} 19. Rfd1 {[%clk 0:02:02.6]}
19... Qf6 {[%clk 0:02:11.4]} 20. Qe2 {[%clk 0:01:54]} 20... Ne6 {[%clk
0:02:09.2]} 21. Rxc8 {[%clk 0:01:50.7]} 21... Rxc8 {[%clk 0:02:06.9]} 22. Nxe6
{[%clk 0:01:34.5]} 22... fxe6 {[%clk 0:02:03.6]} 23. e4 {[%clk 0:01:21.6]} 23...
Kg7 {[%clk 0:01:48.6]} 24. Qb5 {[%clk 0:00:47.9]} 24... Rc5 {[%clk 0:01:25.5]}
25. Qd7+ {[%clk 0:00:39.7]} 25... Qf7 {[%clk 0:01:24.7]} 26. Qd8 {[%clk
0:00:25.4]} 26... Rc8 {[%clk 0:01:22.7]} 27. Qd6 {[%clk 0:00:20]} 27... dxe4
{[%clk 0:01:15.9]} 28. Qe5+ {[%clk 0:00:19.7]} 28... Kg8 {[%clk 0:01:10.3]} 29.
Bxe4 {[%clk 0:00:20.1]} 29... Bxe4 {[%clk 0:00:34.4]} 30. Qxe4 {[%clk 0:00:21]}
30... Rc7 {[%clk 0:00:27.8]} 31. Rd8+ {[%clk 0:00:19.2]} 31... Kg7 {[%clk
0:00:27]} 32. Qe5+ {[%clk 0:00:19.2]} 32... Kh6 {[%clk 0:00:26.9]} 33. Qe3+
{[%clk 0:00:14.6]} 33... Kg7 {[%clk 0:00:21.3]} 34. Qe5+ {[%clk 0:00:14.3]}
34... Kh6 {[%clk 0:00:19.5]} 35. Qe3+ {[%clk 0:00:09.5]} 35... g5 {[%clk
0:00:19.2]} 36. Rd4 {[%clk 0:00:04.8]} 36... Rc1+ {[%clk 0:00:18.5]} 37. Kh2
{[%clk 0:00:04.4]} 37... Rf1 {[%clk 0:00:16.2]} 38. f3 {[%clk 0:00:03.7]} 38...
Kg6 {[%clk 0:00:15.6]} 39. Qd3+ {[%clk 0:00:02.8]} 39... Qf5 {[%clk 0:00:15.7]}
40. Qxf1 {[%clk 0:00:03.7]} 40... Qe5+ {[%clk 0:00:15.9]} 41. Kh1 {[%clk
0:00:02.3]} 41... Qxd4 {[%clk 0:00:16.1]} 42. Qb1+ {[%clk 0:00:02.8]} 42... Kg7
{[%clk 0:00:15.3]} 43. Qe1 {[%clk 0:00:03.1]} 43... e5 {[%clk 0:00:15.3]} 44.
Qe2 {[%clk 0:00:03.3]} 44... h6 {[%clk 0:00:15.2]} 45. Kh2 {[%clk 0:00:03.7]}
45... a5 {[%clk 0:00:15.5]} 46. Qe4 {[%clk 0:00:03.8]} 46... Qxe4 {[%clk
0:00:15.4]} 47. fxe4 {[%clk 0:00:04.1]} 47... Kf6 {[%clk 0:00:15.6]} 48. Kg3
{[%clk 0:00:04.8]} 48... h5 {[%clk 0:00:16]} 49. Kf3 {[%clk 0:00:05.1]} 49...
Ke6 {[%clk 0:00:16.2]} 50. Ke3 {[%clk 0:00:05.7]} 50... Kd6 {[%clk 0:00:16.6]}
51. Kd3 {[%clk 0:00:06.3]} 51... Kc5 {[%clk 0:00:17.1]} 52. Kc3 {[%clk
0:00:06.6]} 52... Kb5 {[%clk 0:00:17.6]} 53. g3 {[%clk 0:00:06.7]} 53... Kc5
{[%clk 0:00:17.4]} 54. a3 {[%clk 0:00:06.4]} 54... Kb5 {[%clk 0:00:17.7]} 55. b4
{[%clk 0:00:05]} 55... Ka4 {[%clk 0:00:17.2]} 56. bxa5 {[%clk 0:00:04.1]} 56...
bxa5 {[%clk 0:00:17.5]} 57. Kb2 {[%clk 0:00:04.2]} 57... Kb5 {[%clk 0:00:17.9]}
58. Kb3 {[%clk 0:00:04.3]} 58... a4+ {[%clk 0:00:18]} 59. Kc3 {[%clk 0:00:04.5]}
59... Kc5 {[%clk 0:00:18.5]} 60. Kd3 {[%clk 0:00:04.7]} 60... Kb5 {[%clk
0:00:18.9]} 61. Kc3 {[%clk 0:00:05]} 61... Kc5 {[%clk 0:00:19.3]} 62. Kd3 {[%clk
0:00:05.2]} 62... g4 {[%clk 0:00:18.9]} 63. hxg4 {[%clk 0:00:04.4]} 63... hxg4
{[%clk 0:00:18.9]} 64. Kc3 {[%clk 0:00:04.8]} 64... Kb5 {[%clk 0:00:19.3]} 65.
Kd3 {[%clk 0:00:04.5]} 65... Kc5 {[%clk 0:00:19.6]} 66. Kc3 {[%clk 0:00:05]}
66... Kb5 {[%clk 0:00:20]} 67. Kd3 {[%clk 0:00:05.2]} 67... Kc5 {[%clk
0:00:20.2]} 1/2-1/2